bitfinex/quotes_BTCUSD_20260110
["timestamp","ask_amount","ask_price","bid_price","bid_amount"]
[1768042512149,0.00050608,90807.0,90804.0,0.01101273]
[1768042518584,0.00050608,90807.0,90794.0,0.04685042]
[1768042518789,0.000999,90804.0,90795.0,0.01101382]
[1768042518970,0.01151844,90807.0,90794.0,0.04685042]
[1768042520310,0.01101248,90806.0,90794.0,0.04685042]
[1768042520842,0.01151844,90807.0,90794.0,0.04685042]
[1768042521557,0.01101248,90806.0,90794.0,0.04685042]
[1768042522209,0.01151844,90807.0,90794.0,0.04685042]
[1768042522346,0.01101248,90806.0,90794.0,0.04685042]
[1768042522561,0.01151844,90807.0,90794.0,0.04685042]
[1768042522789,0.01101248,90806.0,90794.0,0.04685042]
[1768042523001,0.00050608,90807.0,90794.0,0.04685042]
[1768042523454,0.01101248,90806.0,90794.0,0.04685042]
[1768042527581,0.00050608,90807.0,90794.0,0.04685042]
[1768042527804,0.01151844,90807.0,90794.0,0.04685042]
[1768042528005,0.01101248,90806.0,90794.0,0.04685042]
[1768042528597,0.01151844,90807.0,90794.0,0.04685042]
[1768042529526,0.00050608,90807.0,90794.0,0.04685042]
[1768042529731,0.00050608,90807.0,90794.0,0.05786436]
[1768042529932,0.01151844,90807.0,90794.0,0.04685042]
[1768042530074,0.00050608,90807.0,90794.0,0.05786436]
[1768042530309,0.01151844,90807.0,90794.0,0.04685042]
[1768042530770,0.00050608,90807.0,90794.0,0.05786436]
[1768042531090,0.01151844,90807.0,90794.0,0.04685042]
[1768042531292,0.00050608,90807.0,90794.0,0.05786436]
[1768042532822,0.00050608,90807.0,90794.0,0.01101394]
[1768042533041,0.04840127,90806.0,90797.0,0.21854754]
[1768042533613,0.04738754,90807.0,90797.0,0.21854754]
[1768042534023,0.00050608,90807.0,90797.0,0.21854754]
[1768042534224,0.01151844,90807.0,90797.0,0.21854754]
[1768042534444,0.00050608,90807.0,90794.0,0.01101394]
[1768042534649,0.04738754,90807.0,90793.0,0.01101406]
[1768042534819,0.0583999,90807.0,90793.0,0.01101406]
[1768042535023,0.04738754,90807.0,90794.0,0.01101394]
[1768042535247,0.0583999,90807.0,90793.0,0.01101406]
[1768042535447,0.04738754,90807.0,90794.0,0.01101394]
[1768042535649,0.0583999,90807.0,90793.0,0.01101406]
[1768042536572,0.01151844,90807.0,90794.0,0.04778278]
[1768042540270,0.00050608,90807.0,90794.0,0.04778278]
[1768042540503,0.00050608,90807.0,90795.0,0.04778278]
[1768042545229,0.00050608,90807.0,90795.0,0.0587966]
[1768042546109,0.00050608,90807.0,90795.0,0.04778278]
[1768042546289,0.00050608,90807.0,90795.0,0.0587966]
[1768042547359,0.00050608,90807.0,90795.0,0.04778278]
[1768042549488,0.00050608,90807.0,90795.0,0.0587966]
[1768042551332,0.00050608,90807.0,90794.0,0.01101394]
[1768042551540,0.00050608,90807.0,90793.0,0.01101406]
[1768042551734,0.00050608,90807.0,90794.0,0.01101394]
[1768042553634,0.01151844,90807.0,90794.0,0.01101394]
[1768042554270,0.00050608,90807.0,90795.0,0.04995397]
[1768042554707,0.01151844,90807.0,90792.0,0.01116478]
[1768042554886,0.05856883,90807.0,90792.0,0.01116478]
[1768042555923,0.04755647,90807.0,90793.0,0.01101406]
[1768042556246,0.04755647,90807.0,90794.0,0.01101394]
[1768042556447,0.00050608,90807.0,90794.0,0.01101394]
[1768042556877,0.00050608,90807.0,90795.0,0.01101382]
[1768042557087,0.00050608,90807.0,90798.0,0.04995397]
[1768042557772,0.00050608,90807.0,90798.0,0.06096742]
[1768042558172,0.00050608,90807.0,90799.0,0.01101333]
[1768042558853,0.00050608,90807.0,90798.0,0.04995397]
[1768042559349,0.00050608,90807.0,90799.0,0.01101333]
[1768042560237,0.00050608,90807.0,90798.0,0.04995397]
[1768042560556,0.00050608,90807.0,90798.0,0.06096742]
[1768042560768,0.00050608,90807.0,90799.0,0.01101333]
[1768042561119,0.00050608,90807.0,90798.0,0.06096742]
[1768042561766,0.00050608,90807.0,90799.0,0.01101333]
[1768042565610,0.00050608,90807.0,90800.0,0.01101321]
[1768042565766,0.00050608,90807.0,90799.0,0.01101333]
[1768042565971,0.00050608,90807.0,90800.0,0.01101321]
[1768042566554,0.00050608,90807.0,90799.0,0.01101333]
[1768042566821,0.00050608,90807.0,90798.0,0.01101345]
[1768042567051,0.00050608,90807.0,90799.0,0.01101333]
[1768042569621,0.00050608,90807.0,90800.0,0.01101321]
[1768042569828,0.00050608,90807.0,90794.0,0.04919588]
[1768042570036,0.00050608,90807.0,90801.0,0.01101309]
[1768042570444,0.00050608,90807.0,90800.0,0.01101321]
[1768042572636,0.00050608,90807.0,90799.0,0.01101333]
[1768042572834,0.00050608,90807.0,90800.0,0.01101321]
[1768042573039,0.00050608,90807.0,90799.0,0.01101333]
[1768042573860,0.00050608,90807.0,90800.0,0.01101321]
[1768042574672,0.00050608,90807.0,90797.0,0.06608115]
[1768042574871,0.00050608,90807.0,90799.0,0.01101333]
[1768042575519,0.00050608,90807.0,90800.0,0.01101321]
[1768042576574,0.00050608,90807.0,90801.0,0.01101309]
[1768042576787,0.00050608,90807.0,90799.0,0.01101333]
[1768042576984,0.00050608,90807.0,90801.0,0.01101309]
[1768042577508,0.00050608,90807.0,90800.0,0.01101321]
[1768042577910,0.00050608,90807.0,90801.0,0.01101309]
[1768042578135,0.00050608,90807.0,90800.0,0.01101321]
[1768042578993,0.00050608,90807.0,90799.0,0.01101333]
[1768042580619,0.00050608,90807.0,90798.0,0.01101345]
[1768042581185,0.00050608,90807.0,90799.0,0.01101333]
[1768042581382,0.00050608,90807.0,90798.0,0.01101345]
[1768042581610,0.00050608,90807.0,90799.0,0.01101333]
[1768042581993,0.00050608,90807.0,90797.0,0.01101357]
[1768042582532,0.00050608,90807.0,90798.0,0.01101345]
[1768042582732,0.00050608,90807.0,90799.0,0.01101333]
[1768042583573,0.00050608,90807.0,90798.0,0.01101345]
[1768042583910,0.00050608,90807.0,90799.0,0.01101333]
[1768042585003,0.00050608,90807.0,90798.0,0.01101345]
[1768042585173,0.00050608,90807.0,90799.0,0.01101333]
[1768042585928,0.00050608,90807.0,90798.0,0.01101345]
[1768042586267,0.00050608,90807.0,90799.0,0.01101333]
[1768042587521,0.00050608,90807.0,90800.0,0.01101321]
[1768042587673,0.00050608,90807.0,90799.0,0.01101333]
[1768042588322,0.00050608,90807.0,90800.0,0.01101321]
[1768042588672,0.00050608,90807.0,90799.0,0.01101333]
[1768042588873,0.00050608,90807.0,90800.0,0.01101321]
[1768042589122,0.00050608,90807.0,90799.0,0.01101333]
[1768042589298,0.00050608,90807.0,90800.0,0.01101321]
[1768042590123,0.00050608,90807.0,90801.0,0.01101309]
[1768042590324,0.00050608,90807.0,90800.0,0.01101321]
[1768042591599,0.00050608,90807.0,90801.0,0.01101309]
[1768042591759,0.00050608,90807.0,90800.0,0.01101321]
[1768042600084,0.00050608,90807.0,90801.0,0.01101309]
[1768042600301,0.00050608,90807.0,90800.0,0.01101321]
[1768042602066,0.00050608,90807.0,90801.0,0.01101309]
[1768042602643,0.00050608,90807.0,90800.0,0.01101321]
[1768042603049,0.00050608,90807.0,90801.0,0.01101309]
[1768042614169,0.00050608,90807.0,90800.0,0.01101321]
[1768042615451,0.04894873,90806.0,90801.0,0.01101309]
[1768042616374,0.04894873,90806.0,90800.0,0.01101321]
[1768042616579,0.04894873,90806.0,90801.0,0.01101309]
[1768042618598,0.04894873,90806.0,90800.0,0.01101321]
[1768042619498,0.04894873,90806.0,90802.0,0.01101297]
[1768042620452,0.00050608,90807.0,90802.0,0.04802796]
[1768042620867,0.00050608,90807.0,90802.0,0.05904093]
[1768042621096,0.00050608,90807.0,90802.0,0.04802796]
[1768042621633,0.00050608,90807.0,90805.0,0.04802796]
[1768042621766,0.00050608,90807.0,90806.0,0.05506244]
[1768042621973,0.00050608,90807.0,90806.0,0.09759719]
[1768042622288,0.00050608,90807.0,90806.0,0.04253475]
[1768042624890,0.00050608,90807.0,90806.0,0.09759719]
[1768042625255,0.00050608,90807.0,90806.0,0.04253475]
[1768042626427,0.00050608,90807.0,90805.0,0.05506301]
[1768042626767,0.05508825,90816.0,90808.0,0.01101224]
[1768042626768,0.03304825,90816.0,90808.0,0.01101224]
[1768042627070,0.02204,90822.0,90811.0,0.01101188]
[1768042627291,0.01101273,90821.0,90811.0,0.01101188]
[1768042627500,0.01101273,90821.0,90810.0,0.011012]
[1768042629514,0.01101273,90821.0,90810.0,0.05354675]
[1768042629660,0.01101273,90821.0,90811.0,0.01101188]
[1768042630009,0.01101273,90821.0,90810.0,0.05354675]
[1768042631034,0.01101273,90821.0,90811.0,0.05354663]
[1768042631664,0.01101273,90821.0,90811.0,0.04253475]
[1768042631867,0.02204,90822.0,90811.0,0.04253475]
[1768042632064,0.02204,90822.0,90811.0,0.05354663]
[1768042632478,0.02204,90822.0,90811.0,0.04253475]
[1768042635682,0.03305054,90822.0,90811.0,0.04253475]
[1768042635841,0.02204,90822.0,90811.0,0.04253475]
[1768042636043,0.02204,90822.0,90809.0,0.01101212]
[1768042636598,0.02204,90822.0,90807.0,0.06607415]
[1768042636795,0.03305054,90822.0,90808.0,0.01101224]
[1768042637011,0.02204,90822.0,90808.0,0.01101224]
[1768042637607,0.02204,90822.0,90809.0,0.01101212]
[1768042637820,0.03305054,90822.0,90808.0,0.01101224]
[1768042637948,0.02204,90822.0,90809.0,0.01101212]
[1768042638155,0.02204,90822.0,90810.0,0.011012]
[1768042638356,0.03305054,90822.0,90808.0,0.01101224]
[1768042639014,0.02204,90822.0,90809.0,0.01101212]
[1768042639512,0.03305054,90822.0,90808.0,0.01101224]
[1768042640233,0.02204,90822.0,90809.0,0.01101212]
[1768042640397,0.03305054,90822.0,90808.0,0.01101224]
[1768042641099,0.01101066,90821.0,90810.0,0.04253475]
[1768042641279,0.02204,90822.0,90810.0,0.04253475]
[1768042642021,0.02204,90822.0,90811.0,0.01101188]
[1768042642226,0.02204,90822.0,90810.0,0.04253475]
[1768042643188,0.02204,90822.0,90810.0,0.04244478]
[1768042644240,0.02204,90822.0,90810.0,0.05345678]
[1768042645826,0.02204,90822.0,90810.0,0.04244478]
[1768042646033,0.02204,90822.0,90810.0,0.05345678]
[1768042646347,0.02204,90822.0,90810.0,0.04244478]
[1768042646697,0.02204,90822.0,90810.0,0.05345678]
[1768042647593,0.02204,90822.0,90811.0,0.01101188]
[1768042648933,0.04977929,90821.0,90808.0,0.01101224]
[1768042649223,0.04977929,90821.0,90809.0,0.01101212]
[1768042649786,0.04977929,90821.0,90808.0,0.01101224]
[1768042650031,0.04977929,90821.0,90809.0,0.01101212]
[1768042650258,0.04977929,90821.0,90808.0,0.01101224]
[1768042651383,0.04977929,90821.0,90809.0,0.01101212]
[1768042651590,0.04977929,90821.0,90808.0,0.01101224]
[1768042652384,0.04977929,90821.0,90809.0,0.06607272]
[1768042652603,0.04977929,90821.0,90811.0,0.01101188]
[1768042653161,0.04977929,90821.0,90813.0,0.01101163]
[1768042653363,0.04977929,90821.0,90812.0,0.01101176]
[1768042653985,0.04977929,90821.0,90813.0,0.01101163]
[1768042654339,0.02204,90822.0,90813.0,0.01101163]
[1768042656094,0.02204,90822.0,90814.0,0.01101151]
[1768042656533,0.04868191,90821.0,90814.0,0.01101151]
[1768042657388,0.02204,90822.0,90814.0,0.01101151]
[1768042657623,0.02204,90822.0,90813.0,0.06606981]
[1768042657821,0.02204,90822.0,90814.0,0.01101151]
[1768042658149,0.02204,90822.0,90811.0,0.01101188]
[1768042658362,0.02204,90822.0,90812.0,0.01101176]
[1768042659013,0.02204,90822.0,90813.0,0.01101163]
[1768042659210,0.02204,90822.0,90812.0,0.01101176]
[1768042659621,0.02204,90822.0,90813.0,0.01101163]
[1768042661178,0.00010057,90823.0,90812.0,0.01101176]
[1768042661388,0.00010057,90823.0,90811.0,0.01101188]
[1768042661997,0.00010057,90823.0,90810.0,0.011012]
[1768042662311,0.01111099,90823.0,90810.0,0.05345496]
[1768042662776,0.00010057,90823.0,90811.0,0.01101188]
[1768042663712,0.00010057,90823.0,90810.0,0.06446696]
[1768042663941,0.00010057,90823.0,90811.0,0.01101188]
[1768042664108,0.00010057,90823.0,90812.0,0.01101176]
[1768042666220,0.00010057,90823.0,90813.0,0.01101163]
[1768042667950,0.00010057,90823.0,90814.0,0.01101151]
[1768042668802,0.00010057,90823.0,90817.0,0.01101115]
[1768042669004,0.00010057,90823.0,90817.0,0.0109451]
[1768042669436,0.00010057,90823.0,90818.0,0.01101103]
[1768042669641,0.00010057,90823.0,90820.0,0.01101079]
[1768042669849,0.00010057,90823.0,90818.0,0.01101103]
[1768042670047,0.00010057,90823.0,90819.0,0.01101091]
[1768042670280,0.00010057,90823.0,90818.0,0.01101103]
[1768042670487,0.00010057,90823.0,90819.0,0.01101091]
[1768042671148,0.00010057,90823.0,90818.0,0.01101103]
[1768042671326,0.00010057,90823.0,90819.0,0.01101091]
[1768042672567,0.00010057,90823.0,90818.0,0.01101103]
[1768042672774,0.00010057,90823.0,90816.0,0.01101127]
[1768042672983,0.00010057,90823.0,90818.0,0.01101103]
[1768042673858,0.00010057,90823.0,90817.0,0.01101115]
[1768042674143,0.00010057,90823.0,90816.0,0.01101127]
[1768042674784,0.00010057,90823.0,90817.0,0.01101115]
[1768042674993,0.00010057,90823.0,90817.0,0.01092117]
[1768042676351,0.00010057,90823.0,90816.0,0.01101127]
[1768042676556,0.00010057,90823.0,90817.0,0.01101115]
[1768042676757,0.00010057,90823.0,90818.0,0.01101103]
[1768042676964,0.00010057,90823.0,90817.0,0.01101115]
[1768042677543,0.00010057,90823.0,90818.0,0.01101103]
[1768042677719,0.00010057,90823.0,90813.0,0.05505819]
[1768042677923,0.00010057,90823.0,90817.0,0.01101115]
[1768042678104,0.00010057,90823.0,90816.0,0.01101127]
[1768042678283,0.00010057,90823.0,90815.0,0.01101139]
[1768042678494,0.00010057,90823.0,90816.0,0.01101127]
[1768042678890,0.00010057,90823.0,90817.0,0.01101115]
[1768042679676,0.00010057,90823.0,90818.0,0.01101103]
[1768042680827,0.00010057,90823.0,90819.0,0.01101091]
[1768042681013,0.00010057,90823.0,90820.0,0.01101079]
[1768042681171,0.00010057,90823.0,90819.0,0.01101091]
[1768042682844,0.00010057,90823.0,90818.0,0.01101103]
[1768042682973,0.00010057,90823.0,90819.0,0.01101091]
[1768042685582,0.00010057,90823.0,90818.0,0.01101103]
[1768042685761,0.00010057,90823.0,90819.0,0.01101091]
[1768042686307,0.00010057,90823.0,90818.0,0.01101103]
[1768042686467,0.00010057,90823.0,90819.0,0.01101091]
[1768042687251,0.00010057,90823.0,90818.0,0.01101103]
[1768042687470,0.00010057,90823.0,90817.0,0.01101115]
[1768042687674,0.00010057,90823.0,90819.0,0.01101091]
[1768042689082,0.00010057,90823.0,90818.0,0.01101103]
[1768042689870,0.00010057,90823.0,90819.0,0.01101091]
[1768042690898,0.00010057,90823.0,90820.0,0.06606462]
[1768042691095,0.00010057,90823.0,90820.0,0.01101079]
[1768042691542,0.00010057,90823.0,90818.0,0.01101103]
[1768042691722,0.00010057,90823.0,90819.0,0.01101091]
[1768042692365,0.00010057,90823.0,90818.0,0.01101103]
[1768042692566,0.00010057,90823.0,90819.0,0.01101091]
[1768042692729,0.00010057,90823.0,90820.0,0.01101079]
[1768042698157,0.00010057,90823.0,90820.0,0.06606464]
[1768042698356,0.00010057,90823.0,90821.0,0.05505333]
[1768042698656,0.00010057,90823.0,90820.0,0.06606464]
[1768042699512,0.00010057,90823.0,90820.0,0.01101079]
[1768042700290,0.00010057,90823.0,90819.0,0.01101091]
[1768042700695,0.00010057,90823.0,90820.0,0.01101079]
[1768042700974,0.00010057,90823.0,90818.0,0.01101103]
[1768042701355,0.00010057,90823.0,90819.0,0.01101091]
[1768042701546,0.00010057,90823.0,90818.0,0.01101103]
[1768042702330,0.00010057,90823.0,90819.0,0.01101091]
[1768042702687,0.00010057,90823.0,90820.0,0.01101079]
[1768042703903,0.00010057,90823.0,90819.0,0.01101091]
[1768042704601,0.00010057,90823.0,90820.0,0.01101079]
[1768042705435,0.00010057,90823.0,90819.0,0.01101091]
[1768042705636,0.00010057,90823.0,90820.0,0.01101079]
[1768042706681,0.00010057,90823.0,90818.0,0.01101103]
[1768042706972,0.00010057,90823.0,90820.0,0.01101079]
[1768042707178,0.00010057,90823.0,90819.0,0.01101091]
[1768042707705,0.00010057,90823.0,90820.0,0.01101079]
[1768042708351,0.00010057,90823.0,90819.0,0.01101091]
[1768042709576,0.00010057,90823.0,90820.0,0.01101079]
[1768042710243,0.04861647,90822.0,90819.0,0.02707613]
[1768042710712,0.00010057,90823.0,90820.0,0.01101079]
[1768042711061,0.00010057,90823.0,90818.0,0.05505471]
[1768042711266,0.00010057,90823.0,90684.0,0.0004]
[1768042711267,0.04861647,90815.0,90804.0,0.01101273]
[1768042711490,0.04861647,90815.0,90802.0,0.01101297]
[1768042711691,0.04861647,90815.0,90803.0,0.01101285]
[1768042711891,0.04861647,90815.0,90800.0,0.01101321]
[1768042712428,0.04861647,90814.0,90801.0,0.01101309]
[1768042712567,0.05962798,90814.0,90800.0,0.01101321]
[1768042713015,0.04861647,90814.0,90801.0,0.01101309]
[1768042713884,0.04988719,90811.0,90798.0,0.01151956]
[1768042714231,0.04988719,90811.0,90799.0,0.01101333]
[1768042716198,0.04988719,90811.0,90798.0,0.01151956]
[1768042716397,0.04988719,90811.0,90800.0,0.01101321]
[1768042716755,0.04988719,90811.0,90798.0,0.01151956]
[1768042718097,0.04988719,90811.0,90799.0,0.01101333]
[1768042718466,0.04988719,90811.0,90800.0,0.01101321]
[1768042718922,0.04988719,90811.0,90801.0,0.01101309]
[1768042720323,0.04988719,90811.0,90802.0,0.01101297]
[1768042720923,0.04988719,90811.0,90801.0,0.01101309]
[1768042721439,0.04988719,90811.0,90802.0,0.01101297]
[1768042722905,0.04988719,90811.0,90801.0,0.01101309]
[1768042725793,0.04988719,90811.0,90802.0,0.01101297]
[1768042726553,0.04988719,90811.0,90801.0,0.01101309]
[1768042727066,0.04988719,90811.0,90802.0,0.01101297]
[1768042727469,0.04988719,90811.0,90801.0,0.01101309]
[1768042727672,0.04988719,90811.0,90802.0,0.01101297]
[1768042728070,0.04988719,90811.0,90803.0,0.01101285]
[1768042728428,0.04988719,90811.0,90802.0,0.01101297]
[1768042728733,0.04988719,90811.0,90801.0,0.01101309]
[1768042729114,0.04988719,90811.0,90802.0,0.01101297]
[1768042729433,0.04988719,90811.0,90799.0,0.01101333]
[1768042729752,0.04988719,90811.0,90801.0,0.01101309]
[1768042730116,0.04988719,90811.0,90802.0,0.01101297]
[1768042731612,0.04988719,90811.0,90801.0,0.01101309]
[1768042732540,0.04988719,90811.0,90802.0,0.01101297]
[1768042736095,0.04988719,90811.0,90800.0,0.01101321]
[1768042736217,0.04988719,90811.0,90802.0,0.01101297]
[1768042737333,0.04988719,90811.0,90801.0,0.01101309]
[1768042737556,0.02202472,90815.0,90801.0,0.01101309]
[1768042737557,0.01101333,90815.0,90801.0,0.01101309]
[1768042737773,0.05953958,90815.0,90804.0,0.01094447]
[1768042738197,0.05953958,90815.0,90804.0,0.01101273]
[1768042738885,0.05953958,90815.0,90803.0,0.01101285]
[1768042739100,0.05953958,90815.0,90802.0,0.01101297]
[1768042739325,0.05953958,90815.0,90803.0,0.01101285]
[1768042739556,0.05953958,90815.0,90801.0,0.01101309]
[1768042739770,0.05953958,90815.0,90802.0,0.01101297]
[1768042740639,0.05953958,90815.0,90803.0,0.01101285]
[1768042741082,0.05953958,90815.0,90802.0,0.01101297]
[1768042741455,0.05953958,90815.0,90803.0,0.01101285]
[1768042741638,0.05953958,90815.0,90802.0,0.01101297]
[1768042742222,0.05953958,90815.0,90803.0,0.01101285]
[1768042742421,0.05953958,90815.0,90802.0,0.01101297]
[1768042742667,0.05953958,90815.0,90807.0,0.01101236]
[1768042742668,0.01101333,90815.0,90807.0,0.01101236]
[1768042743075,0.04852625,90820.0,90810.0,0.011012]
[1768042743454,0.03304843,90819.0,90809.0,0.01101212]
[1768042743734,0.03304843,90819.0,90808.0,0.01101224]
[1768042743930,0.03304843,90819.0,90809.0,0.01101212]
[1768042744538,0.03304843,90819.0,90808.0,0.01101224]
[1768042744990,0.03304843,90819.0,90815.0,0.01101139]
[1768042745205,0.00010057,90823.0,90816.0,0.01101127]
[1768042745408,0.00010057,90823.0,90817.0,0.01101115]
[1768042745612,0.00010057,90823.0,90815.0,0.05918903]
[1768042745815,0.00010057,90823.0,90816.0,0.01101127]
[1768042746090,0.00010057,90823.0,90815.0,0.04817764]
[1768042746303,0.00010057,90823.0,90815.0,0.05918903]
[1768042746503,0.00010057,90823.0,90815.0,0.04817764]
[1768042747071,0.00010057,90823.0,90815.0,0.05918903]
[1768042747390,0.00010057,90823.0,90815.0,0.04817764]
[1768042747959,0.00010057,90823.0,90815.0,0.05918903]
[1768042748201,0.00010057,90823.0,90815.0,0.04817764]
[1768042748399,0.00010057,90823.0,90815.0,0.05918903]
[1768042750078,0.00010057,90823.0,90815.0,0.04817764]
[1768042753238,0.00010057,90823.0,90815.0,0.05918903]
[1768042754076,0.00010057,90823.0,90815.0,0.04817764]
[1768042754615,0.00010057,90823.0,90810.0,0.25153365]
[1768042754831,0.00010057,90823.0,90812.0,0.01101176]
[1768042755039,0.00010057,90823.0,90811.0,0.01101188]
[1768042755460,0.00010057,90823.0,90810.0,0.02204]
[1768042755632,0.01111099,90823.0,90810.0,0.02204]
[1768042755834,0.00010057,90823.0,90810.0,0.033052]
[1768042756218,0.00010057,90823.0,90810.0,0.02204]
[1768042756414,0.04814823,90823.0,90810.0,0.02204]
[1768042756647,0.04814823,90823.0,90810.0,0.033052]
[1768042757227,0.04814823,90823.0,90810.0,0.02204]
[1768042757434,0.04814823,90823.0,90810.0,0.033052]
[1768042757888,0.04814823,90823.0,90811.0,0.01101188]
[1768042758096,0.04814823,90823.0,90810.0,0.02204]
[1768042758280,0.04814823,90823.0,90811.0,0.01101188]
[1768042758680,0.04814823,90823.0,90812.0,0.01101176]
[1768042759352,0.04814823,90823.0,90811.0,0.01101188]
[1768042759551,0.04814823,90823.0,90810.0,0.033052]
[1768042759736,0.04814823,90823.0,90811.0,0.01101188]
[1768042760727,0.04814823,90823.0,90810.0,0.033052]
[1768042760929,0.04814823,90823.0,90812.0,0.01101176]
[1768042761796,0.04814823,90823.0,90811.0,0.01101188]
[1768042762151,0.04814823,90823.0,90812.0,0.01101176]
[1768042763053,0.04814823,90823.0,90811.0,0.01101188]
[1768042763204,0.04814823,90823.0,90812.0,0.01101176]
[1768042763644,0.04814823,90823.0,90811.0,0.01101188]
[1768042764056,0.04814823,90823.0,90812.0,0.01101176]
[1768042765476,0.04814823,90823.0,90810.0,0.02204]
[1768042765760,0.04814823,90823.0,90812.0,0.01101176]
[1768042766295,0.04814823,90823.0,90813.0,0.01101163]
[1768042766652,0.04814823,90823.0,90812.0,0.01101176]
[1768042767137,0.04814823,90823.0,90810.0,0.02204]
[1768042767339,0.04814823,90823.0,90810.0,0.033052]
[1768042767538,0.04814823,90823.0,90812.0,0.01101176]
[1768042767970,0.04814823,90823.0,90811.0,0.01101188]
[1768042768182,0.04814823,90823.0,90810.0,0.033052]
[1768042768684,0.04814823,90823.0,90812.0,0.01101176]
[1768042769152,0.04814823,90823.0,90810.0,0.033052]
[1768042769326,0.04814823,90823.0,90811.0,0.01101188]
[1768042769543,0.04814823,90823.0,90810.0,0.033052]
[1768042770100,0.05915865,90823.0,90810.0,0.033052]
[1768042770297,0.04814823,90823.0,90810.0,0.033052]
[1768042772028,0.05915865,90823.0,90810.0,0.02204]
[1768042772204,0.04814823,90823.0,90810.0,0.033052]
[1768042772446,0.04814823,90823.0,90811.0,0.01101188]
[1768042772633,0.04814823,90823.0,90812.0,0.01101176]
[1768042773370,0.04814823,90823.0,90811.0,0.01101188]
[1768042773582,0.04814823,90823.0,90810.0,0.033052]
[1768042774114,0.00010057,90823.0,90811.0,0.05792892]
[1768042774331,0.00010057,90823.0,90813.0,0.04691704]
[1768042776556,0.00010057,90823.0,90814.0,0.04691704]
[1768042777744,0.00010057,90823.0,90814.0,0.05792855]
[1768042778009,0.00010057,90823.0,90814.0,0.04691704]
[1768042780482,0.00010057,90823.0,90814.0,0.05792855]
[1768042780692,0.00010057,90823.0,90815.0,0.05792843]
[1768042780904,0.00010057,90823.0,90815.0,0.04691704]
[1768042781981,0.00010057,90823.0,90815.0,0.05792843]
[1768042782615,0.00010057,90823.0,90815.0,0.04691704]
[1768042782820,0.00010057,90823.0,90815.0,0.05792843]
[1768042783025,0.00010057,90823.0,90815.0,0.04691704]
[1768042783762,0.00010057,90823.0,90815.0,0.05792843]
[1768042784095,0.00010057,90823.0,90815.0,0.04691704]
[1768042787113,0.00010057,90823.0,90815.0,0.05792843]
[1768042787353,0.00010057,90823.0,90815.0,0.04691704]
[1768042788145,0.00010057,90823.0,90817.0,0.01101115]
[1768042788328,0.00010057,90823.0,90816.0,0.01101127]
[1768042788705,0.00010057,90823.0,90817.0,0.01101115]
[1768042788901,0.00010057,90823.0,90816.0,0.01101127]
[1768042789059,0.00010057,90823.0,90818.0,0.01101103]
[1768042789263,0.00010057,90823.0,90816.0,0.01101127]
[1768042789505,0.00010057,90823.0,90818.0,0.01101103]
[1768042789709,0.00010057,90823.0,90816.0,0.01101127]
[1768042789884,0.00010057,90823.0,90818.0,0.01101103]
[1768042790091,0.00010057,90823.0,90820.0,0.01101079]
[1768042791556,0.00010057,90823.0,90819.0,0.01101091]
[1768042791756,0.00010057,90823.0,90818.0,0.01101103]
[1768042791981,0.00010057,90823.0,90817.0,0.01101115]
[1768042792187,0.0001506,90833.0,90819.0,0.04677677]
[1768042792486,0.00020475,90833.0,90822.0,0.05778731]
[1768042792642,0.00020475,90833.0,90827.0,0.01100994]
[1768042792842,0.00020475,90833.0,90826.0,0.04677677]
[1768042793567,0.01121396,90833.0,90826.0,0.04577777]
[1768042793741,0.00020475,90833.0,90826.0,0.04577777]
[1768042794752,0.00020475,90833.0,90820.0,0.02204]
[1768042794947,0.01100933,90832.0,90820.0,0.02204]
[1768042795380,0.21848165,90830.0,90820.0,0.03305079]
[1768042795588,0.21848165,90830.0,90820.0,0.02204]
[1768042795784,0.21848165,90830.0,90820.0,0.03305079]
[1768042796016,0.21848165,90830.0,90820.0,0.02204]
[1768042796421,0.21848165,90830.0,90820.0,0.03305079]
[1768042796950,0.21848165,90830.0,90821.0,0.01101066]
[1768042797109,0.21848165,90830.0,90820.0,0.03305079]
[1768042797285,0.21848165,90830.0,90820.0,0.02204]
[1768042797497,0.01100933,90832.0,90820.0,0.02204]
[1768042797709,0.00020475,90833.0,90820.0,0.02204]
[1768042798278,0.01121396,90833.0,90820.0,0.02204]
[1768042798482,0.00020475,90833.0,90820.0,0.03305079]
[1768042799263,0.00020475,90833.0,90821.0,0.01101066]
[1768042799435,0.00020475,90833.0,90820.0,0.03305079]
[1768042799634,0.00020475,90833.0,90821.0,0.01101066]
[1768042799831,0.00020475,90833.0,90820.0,0.03305079]
[1768042800244,0.04722458,90833.0,90820.0,0.02204]
[1768042800468,0.04722458,90833.0,90820.0,0.03305079]
[1768042800667,0.04722458,90833.0,90820.0,0.02204]
[1768042801081,0.21848165,90830.0,90820.0,0.02204]
[1768042801255,0.04701983,90829.0,90819.0,0.02204]
[1768042801450,0.05802952,90829.0,90812.0,0.01101176]
[1768042801654,0.04701983,90823.0,90815.0,0.01101139]
[1768042801861,0.04701983,90823.0,90814.0,0.01101151]
[1768042802272,0.04701983,90823.0,90816.0,0.01101127]
[1768042802929,0.04701983,90823.0,90815.0,0.01101139]
[1768042803131,0.04701983,90823.0,90816.0,0.01090024]
[1768042803330,0.04701983,90823.0,90817.0,0.01101115]
[1768042803533,0.04701983,90823.0,90816.0,0.01101127]
[1768042803759,0.04701983,90823.0,90814.0,0.01101151]
[1768042803949,0.04701983,90823.0,90813.0,0.01101163]
[1768042804507,0.04701983,90823.0,90814.0,0.01101151]
[1768042805144,0.04701983,90823.0,90813.0,0.01101163]
[1768042805396,0.13215568,90827.0,90815.0,0.01101139]
[1768042805567,0.04941109,90826.0,90814.0,0.01101151]
[1768042805768,0.04941109,90826.0,90813.0,0.01101163]
[1768042805970,0.04941109,90826.0,90814.0,0.01101151]
[1768042806170,0.04941109,90826.0,90812.0,0.06607053]
[1768042806381,0.04941109,90826.0,90812.0,0.01101176]
[1768042806621,0.04941109,90826.0,90815.0,0.01101139]
[1768042807185,0.04941109,90826.0,90814.0,0.01101151]
[1768042807610,0.04941109,90826.0,90815.0,0.01101139]
[1768042807969,0.04941109,90826.0,90813.0,0.01101163]
[1768042808089,0.04941109,90826.0,90814.0,0.01101151]
[1768042808721,0.04941109,90826.0,90815.0,0.01101139]
[1768042808947,0.04941109,90826.0,90816.0,0.01101127]
[1768042809154,0.04941109,90826.0,90815.0,0.01101139]
[1768042809560,0.04941109,90826.0,90816.0,0.01101127]
[1768042810010,0.04941109,90826.0,90815.0,0.01101139]
[1768042810210,0.04941109,90826.0,90816.0,0.01101127]
[1768042810414,0.04941109,90826.0,90815.0,0.01101139]
[1768042811130,0.04941109,90826.0,90814.0,0.01101151]
[1768042811546,0.04941109,90826.0,90810.0,0.011012]
[1768042811762,0.13215568,90827.0,90811.0,0.01101188]
[1768042811970,0.06042127,90825.0,90810.0,0.011012]
[1768042812183,0.04941109,90825.0,90812.0,0.01101176]
[1768042812388,0.04941109,90825.0,90811.0,0.01101188]
[1768042812590,0.0110103,90824.0,90810.0,0.011012]
[1768042812747,0.06042127,90825.0,90811.0,0.01101188]
[1768042813087,0.0110103,90824.0,90810.0,0.011012]